fUST/lending_fUST_20241016
["ID","MTS","AMOUNT","RATE_DAILY","PERIOD"]
[340305903,1729017038674,-1362.03,0.00024463,3]
[340305905,1729017038685,-681.01,0.00024463,3]
[340305909,1729017038708,-2513.96195359,0.00024472,2]
[340305911,1729017038720,-500.0,0.00024472,2]
[340305913,1729017038733,-500.0,0.00024472,2]
[340305915,1729017038742,-500.0,0.00024472,2]
[340305917,1729017038753,-516.6496138,0.00024472,2]
[340305919,1729017038763,-500.0,0.00024472,2]
[340305921,1729017038775,-400.0,0.00024472,2]
[340305924,1729017038787,-500.0,0.00024472,2]
[340305926,1729017038796,-500.0,0.00024472,2]
[340305928,1729017038807,-500.0,0.00024472,2]
[340305930,1729017038817,-500.0,0.00024472,2]
[340305932,1729017038827,-500.0,0.00024472,2]
[340305934,1729017038839,-500.0,0.00024472,2]
[340305936,1729017038849,-500.0,0.00024472,2]
[340305938,1729017038860,-500.0,0.00024472,2]
[340305941,1729017038871,-500.0,0.00024472,2]
[340305943,1729017038882,-500.0,0.00024472,2]
[340305945,1729017038892,-500.0,0.00024472,2]
[340305947,1729017038902,-500.0,0.00024472,2]
[340305949,1729017038911,-500.0,0.00024472,2]
[340305951,1729017038922,-500.0,0.00024472,2]
[340305953,1729017038934,-500.0,0.00024472,2]
[340305955,1729017038945,-500.0,0.00024472,2]
[340305957,1729017038955,-500.0,0.00024472,2]
[340305959,1729017038966,-500.0,0.00024472,2]
[340305962,1729017038978,-500.0,0.00024472,2]
[340305964,1729017038988,-500.0,0.00024472,2]
[340305966,1729017039000,-500.0,0.00024472,2]
[340305968,1729017039010,-500.0,0.00024472,2]
[340305970,1729017039020,-500.0,0.00024472,2]
[340305971,1729017039030,-500.0,0.00024472,2]
[340305972,1729017039041,-500.0,0.00024472,2]
[340305973,1729017039052,-500.0,0.00024472,2]
[340305974,1729017039062,-500.0,0.00024472,2]
[340305975,1729017039072,-500.0,0.00024472,2]
[340305976,1729017039082,-500.0,0.00024472,2]
[340305977,1729017039092,-500.0,0.00024472,2]
[340305978,1729017039101,-500.0,0.00024472,2]
[340305979,1729017039111,-500.0,0.00024472,2]
[340305980,1729017039121,-500.0,0.00024472,2]
[340305981,1729017039131,-500.0,0.00024472,2]
[340305982,1729017039141,-500.0,0.00024472,2]
[340305983,1729017039150,-500.0,0.00024472,2]
[340305984,1729017039160,-500.0,0.00024472,2]
[340305985,1729017039171,-500.0,0.00024472,2]
[340305986,1729017039182,-500.0,0.00024472,2]
[340305987,1729017039192,-500.0,0.00024472,2]
[340305988,1729017039202,-500.0,0.00024472,2]
[340305989,1729017039212,-500.0,0.00024472,2]
[340305990,1729017039222,-500.0,0.00024472,2]
[340305991,1729017039236,-500.0,0.00024472,2]
[340305992,1729017039246,-500.0,0.00024472,2]
[340305993,1729017039256,-500.0,0.00024472,2]
[340305994,1729017039265,-500.0,0.00024472,2]
[340305995,1729017039275,-506.99966075,0.00024472,2]
[340305996,1729017039285,-500.0,0.00024472,2]
[340305997,1729017039295,-500.0,0.00024472,2]
[340305998,1729017039307,-500.0,0.00024472,2]
[340305999,1729017039317,-500.0,0.00024472,2]
[340306000,1729017039330,-500.0,0.00024472,2]
[340306001,1729017039339,-500.0,0.00024472,2]
[340306002,1729017039351,-500.0,0.00024472,2]
[340306003,1729017039362,-500.0,0.00024472,2]
[340306004,1729017039372,-172.66448078,0.00024472,2]
[340306005,1729017039383,-499.99999999,0.00024472,2]
[340306006,1729017039393,-166.25234886,0.00024472,2]
[340306007,1729017039403,-500.0,0.00024472,2]
[340306008,1729017039413,-500.0,0.00024472,2]
[340306009,1729017039422,-250.0,0.00024472,2]
[340306010,1729017039433,-500.0,0.00024473,2]
[340306011,1729017039445,-500.0,0.00024473,2]
[340306012,1729017039455,-113502.159885,0.00024473,3]
[340306013,1729017039465,-3189.64004214,0.00024473,3]
[340306014,1729017039478,-270.09339538,0.00024482,2]
[340306015,1729017039488,-624.87290432,0.00024482,2]
[340306016,1729017039498,-255.83109506,0.00024482,2]
[340306017,1729017039509,-300.85598494,0.00024482,2]
[340306018,1729017039519,-500.0,0.00024482,2]
[340306019,1729017039529,-282.08173777,0.00024482,2]
[340306020,1729017039539,-179.08176654,0.00024482,2]
[340306021,1729017039550,-14845.67534551,0.00024483,2]
[340306030,1729017040395,-82241.5439043,0.00024483,2]
[340306031,1729017040406,-8481.61592233,0.00024491,2]
[340306032,1729017040417,-198.734459,0.000245,2]
[340306033,1729017040427,-198.734459,0.00024565,2]
[340306034,1729017040439,-166.666666,0.00024577,2]
[340306035,1729017040449,-832.93818469,0.00024591,2]
[340306036,1729017040460,-2025.88165648,0.00024596,2]
[340306037,1729017040471,-3673.85976754,0.00024597,2]
[340306038,1729017040482,-150.112233,0.000246,2]
[340306039,1729017040492,-150.112233,0.000246,5]
[340306040,1729017040502,-2025.88165648,0.00024602,2]
[340306041,1729017040513,-113502.159885,0.00024604,3]
[340306042,1729017040523,-3189.64004214,0.00024604,3]
[340306043,1729017040533,-2403.08979944,0.00024607,2]
[340306044,1729017040542,-2025.88165648,0.00024608,2]
[340306045,1729017040556,-2025.88165648,0.00024614,2]
[340306046,1729017040569,-1000.0,0.00024618,2]
[340306047,1729017040580,-2025.88165648,0.0002462,2]
[340306048,1729017040590,-7278.5175859,0.00024628,2]
[340306049,1729017040602,-198.734459,0.00024629,2]
[340306050,1729017040613,-660.0,0.00024658,2]
[340306051,1729017040624,-500.0,0.00024658,2]
[340306052,1729017040636,-500.0,0.00024658,2]
[340306053,1729017040647,-500.0,0.00024673,2]
[340306054,1729017040659,-500.0,0.00024673,2]
[340306055,1729017040671,-151.0,0.00024685,7]
[340306056,1729017040680,-151.0,0.00024685,2]
[340306057,1729017040690,-151.0,0.00024685,7]
[340306058,1729017040700,-113502.159885,0.00024685,3]
[340306059,1729017040709,-3189.64004214,0.00024685,3]
[340306060,1729017040719,-198.734459,0.00024694,2]
[340306061,1729017040730,-150.0,0.00024695,2]
[340306062,1729017040741,-500.0,0.00024695,2]
[340306063,1729017040752,-150.0,0.00024695,2]
[340306064,1729017040764,-500.0,0.00024695,2]
[340306065,1729017040775,-150.0,0.00024695,2]
[340306066,1729017040786,-150.0,0.00024695,2]
[340306067,1729017040797,-14774.39817041,0.00024696,4]
[340306068,1729017040809,-113502.159885,0.00024697,3]
[340306069,1729017040820,-3189.64004214,0.00024697,3]
[340306070,1729017040830,-151.0,0.00024697,7]
[340306071,1729017040841,-151.0,0.00024697,2]
[340306072,1729017040853,-150.112233,0.000247,3]
[340306073,1729017040866,-150.112233,0.000247,3]
[340306074,1729017040876,-150.112233,0.000247,5]
[340306075,1729017040886,-150.112233,0.000247,5]
[340306076,1729017040898,-150.112233,0.000247,2]
[340306077,1729017040909,-150.112233,0.000247,3]
[340306078,1729017040919,-150.112233,0.000247,3]
[340306079,1729017040930,-150.112233,0.000247,4]
[340306080,1729017040943,-178.681574,0.000247,4]
[340306081,1729017040953,-150.112233,0.000247,3]
[340306082,1729017040966,-150.112233,0.000247,3]
[340306083,1729017040978,-150.112233,0.000247,3]
[340306084,1729017040992,-150.112233,0.000247,3]
[340306085,1729017041001,-150.112233,0.000247,2]
[340306086,1729017041012,-150.112233,0.000247,4]
[340306087,1729017041022,-150.112233,0.000247,3]
[340306088,1729017041033,-150.112233,0.000247,3]
[340306089,1729017041043,-150.112233,0.000247,3]
[340306090,1729017041053,-30063.13801151,0.000247,4]
[340306091,1729017041065,-3189.64004214,0.000247,3]
[340306092,1729017041078,-3189.64004214,0.0002471,3]
[340306093,1729017041088,-151.0,0.0002471,7]
[340306094,1729017041097,-151.0,0.0002471,7]
[340306095,1729017041108,-12758.5601686,0.0002471,3]
[340306096,1729017041119,-3189.64004214,0.0002472,3]
[340306097,1729017041130,-595.37762,0.0002472,7]
[340306098,1729017041142,-595.37762,0.0002472,7]
[340306099,1729017041153,-151.0,0.0002472,7]
[340306100,1729017041164,-151.0,0.0002472,7]
[340306101,1729017041176,-151.0,0.0002472,7]
[340306102,1729017041186,-277.861497,0.0002472,7]
[340306103,1729017041198,-277.861497,0.0002472,7]
[340306104,1729017041209,-277.861497,0.0002472,7]
[340306105,1729017041221,-277.861497,0.0002472,7]
[340306106,1729017041234,-277.861497,0.0002472,7]
[340306107,1729017041243,-277.861497,0.0002472,7]
[340306108,1729017041252,-3135.050326,0.0002472,7]
[340306109,1729017041262,-3135.050326,0.0002472,7]
[340306110,1729017041271,-256.024179,0.0002472,7]
[340306111,1729017041281,-3135.050326,0.0002472,7]
[340306112,1729017041291,-256.024179,0.0002472,7]
[340306113,1729017041300,-256.024179,0.0002472,7]
[340306114,1729017041313,-3135.050326,0.0002472,7]
[340306115,1729017041322,-3135.050326,0.0002472,7]
[340306116,1729017041332,-3135.050326,0.0002472,7]
[340306117,1729017041344,-256.024179,0.0002472,7]
[340306118,1729017041357,-256.024179,0.0002472,7]
[340306119,1729017041368,-256.024179,0.0002472,7]
[340306120,1729017041377,-153.878135,0.0002472,7]
[340306121,1729017041389,-393.938928,0.0002472,7]
[340306122,1729017041401,-393.938928,0.0002472,7]
[340306123,1729017041412,-393.938928,0.0002472,7]
[340306124,1729017041423,-393.938928,0.0002472,7]
[340306125,1729017041432,-393.938928,0.0002472,7]
[340306126,1729017041442,-393.938928,0.0002472,7]
[340306127,1729017041451,-151.0,0.0002472,7]
[340306128,1729017041460,-151.0,0.0002472,7]
[340306129,1729017041470,-151.0,0.0002472,7]
[340306130,1729017041480,-151.0,0.0002472,7]
[340306131,1729017041490,-151.0,0.0002472,7]
[340306132,1729017041499,-151.0,0.0002472,7]
[340306133,1729017041508,-151.0,0.0002472,7]
[340306134,1729017041519,-178.132417,0.0002472,7]
[340306135,1729017041528,-151.0,0.0002472,7]
[340306136,1729017041537,-151.0,0.0002472,7]
[340306137,1729017041547,-151.0,0.0002472,7]
[340306138,1729017041556,-151.0,0.0002472,7]
[340306139,1729017041565,-151.0,0.0002472,7]
[340306140,1729017041574,-151.0,0.0002472,7]
[340306141,1729017041583,-556.106067,0.0002472,7]
[340306142,1729017041593,-556.106067,0.0002472,7]
[340306143,1729017041602,-556.106067,0.0002472,7]
[340306144,1729017041611,-556.106067,0.0002472,7]
[340306145,1729017041621,-556.106067,0.0002472,7]
[340306146,1729017041630,-556.106067,0.0002472,7]
[340306147,1729017041639,-403.347381,0.0002472,7]
[340306148,1729017041649,-403.347381,0.0002472,7]
[340306149,1729017041659,-403.347381,0.0002472,7]
[340306150,1729017041668,-151.0,0.0002472,7]
[340306151,1729017041677,-151.0,0.0002472,7]
[340306152,1729017041686,-151.0,0.0002472,7]
[340306153,1729017041695,-403.347381,0.0002472,7]
[340306154,1729017041704,-403.347381,0.0002472,7]
[340306155,1729017041714,-403.347381,0.0002472,7]
[340306156,1729017041723,-4518.605231,0.0002472,7]
[340306157,1729017041734,-4518.605231,0.0002472,7]
[340306158,1729017041743,-4518.605231,0.0002472,7]
[340306159,1729017041753,-151.0,0.0002472,7]
[340306160,1729017041763,-151.0,0.0002472,7]
[340306161,1729017041772,-151.0,0.0002472,7]
[340306162,1729017041782,-4518.605231,0.0002472,7]
[340306163,1729017041791,-4518.605231,0.0002472,7]
[340306164,1729017041800,-813.483686,0.0002472,7]
[340306165,1729017041809,-4518.605231,0.0002472,7]
[340306166,1729017041819,-813.483686,0.0002472,7]
[340306167,1729017041829,-813.483686,0.0002472,7]
[340306168,1729017041839,-151.0,0.0002472,7]
[340306169,1729017041850,-151.0,0.0002472,7]
[340306170,1729017041860,-151.0,0.0002472,7]
[340306171,1729017041871,-813.483686,0.0002472,7]
[340306172,1729017041882,-813.483686,0.0002472,7]
[340306173,1729017041892,-813.483686,0.0002472,7]
[340306174,1729017041902,-151.0,0.0002472,7]
[340306175,1729017041912,-151.0,0.0002472,7]
[340306176,1729017041922,-151.0,0.0002472,7]
[340306177,1729017041933,-151.0,0.0002472,7]
[340306178,1729017041943,-151.0,0.0002472,7]
[340306179,1729017041955,-151.0,0.0002472,7]
[340306180,1729017041964,-982.075382,0.0002472,7]
[340306181,1729017041976,-982.075382,0.0002472,7]
[340306182,1729017041988,-982.075382,0.0002472,7]
[340306183,1729017042208,-151.0,0.0002472,7]
[340306184,1729017042219,-982.075382,0.0002472,7]
[340306185,1729017042230,-982.075382,0.0002472,7]
[340306186,1729017042240,-982.075382,0.0002472,7]
[340306187,1729017042251,-151.401652,0.0002472,2]
[340306188,1729017042260,-6379.28008428,0.0002472,3]
[340306189,1729017042269,-161.05263,0.00024721,7]
[340306190,1729017042280,-161.05263,0.00024721,7]
[340306191,1729017042289,-151.0,0.00024721,7]
[340306192,1729017042299,-151.0,0.00024721,7]
[340306193,1729017042314,-1000.0,0.00024721,2]
[340306194,1729017042323,-151.0,0.0002473,7]
[340306195,1729017042333,-151.0,0.0002473,7]
[340306196,1729017042344,-151.0,0.0002473,7]
[340306197,1729017042354,-151.0,0.0002473,7]
[340306198,1729017042363,-151.0,0.0002473,7]
[340306199,1729017042373,-1737.013855,0.0002473,7]
[340306200,1729017042385,-1737.013855,0.0002473,7]
[340306201,1729017042395,-1737.013855,0.0002473,7]
[340306202,1729017042405,-151.0,0.0002473,7]
[340306203,1729017042415,-1737.013855,0.0002473,7]
[340306204,1729017042424,-151.0,0.0002473,7]
[340306205,1729017042433,-151.0,0.0002473,7]
[340306206,1729017042443,-151.0,0.0002473,7]
[340306207,1729017042451,-387.244141,0.0002473,7]
[340306208,1729017042460,-387.244141,0.0002473,7]
[340306209,1729017042470,-1080.492599,0.0002473,7]
[340306210,1729017042479,-1080.492599,0.0002473,7]
[340306211,1729017042488,-387.244141,0.0002473,7]
[340306212,1729017042497,-387.244141,0.0002473,7]
[340306213,1729017042507,-1080.492599,0.0002473,7]
[340306214,1729017042516,-1080.492599,0.0002473,7]
[340306215,1729017042525,-151.0,0.0002473,7]
[340306216,1729017042534,-151.0,0.0002473,7]
[340306217,1729017042543,-722.692571,0.0002473,7]
[340306218,1729017042552,-722.692571,0.0002473,7]
[340306219,1729017042561,-327.411365,0.0002473,7]
[340306220,1729017042570,-327.411365,0.0002473,7]
[340306221,1729017042581,-1008.667292,0.0002473,7]
[340306222,1729017042590,-722.692571,0.0002473,7]
[340306223,1729017042599,-722.692571,0.0002473,7]
[340306224,1729017042608,-327.411365,0.0002473,7]
[340306225,1729017042617,-327.411365,0.0002473,7]
[340306226,1729017042627,-151.0,0.0002473,7]
[340306227,1729017042636,-219.005435,0.0002473,7]
[340306228,1729017042646,-151.0,0.0002473,7]
[340306229,1729017042655,-151.0,0.0002473,7]
[340306230,1729017042664,-978.538985,0.0002473,7]
[340306231,1729017042673,-978.538985,0.0002473,7]
[340306232,1729017042683,-978.538985,0.0002473,7]
[340306233,1729017042692,-978.538985,0.0002473,7]
[340306234,1729017042702,-3900.966555,0.0002473,7]
[340306235,1729017042711,-3900.966555,0.0002473,7]
[340306236,1729017042720,-3900.966555,0.0002473,7]
[340306237,1729017042732,-3900.966555,0.0002473,7]
[340306238,1729017042741,-3900.966555,0.0002473,7]
[340306239,1729017042751,-3900.966555,0.0002473,7]
[340306240,1729017042761,-361.786113,0.0002473,7]
[340306241,1729017042770,-361.786113,0.0002473,7]
[340306242,1729017042779,-361.786113,0.0002473,7]
[340306243,1729017042789,-361.786113,0.0002473,7]
[340306244,1729017042798,-361.786113,0.0002473,7]
[340306245,1729017042806,-361.786113,0.0002473,7]
[340306246,1729017042815,-222.0098,0.0002473,7]
[340306249,1729017042825,-889.449466,0.0002473,2]
[340306251,1729017042834,-263.057463,0.0002473,7]
[340306253,1729017042844,-263.057463,0.0002473,7]
[340306255,1729017042854,-151.0,0.0002473,7]
[340306256,1729017042863,-263.057463,0.0002473,7]
[340306258,1729017042872,-151.0,0.0002473,7]
[340306259,1729017042881,-151.0,0.0002473,7]
[340306260,1729017042891,-151.0,0.0002473,7]
[340306261,1729017042900,-263.057463,0.0002473,7]
[340306262,1729017042910,-151.0,0.0002473,7]
[340306263,1729017042919,-263.057463,0.0002473,7]
[340306264,1729017042928,-151.0,0.0002473,7]
[340306265,1729017042939,-263.057463,0.0002473,7]
[340306266,1729017042948,-2472.310134,0.0002473,7]
[340306267,1729017042960,-2472.310134,0.0002473,7]
[340306268,1729017042970,-2472.310134,0.0002473,7]
[340306269,1729017042983,-2472.310134,0.0002473,7]
[340306270,1729017042992,-2472.310134,0.0002473,7]
[340306271,1729017043002,-2472.310134,0.0002473,7]
[340306272,1729017043011,-366.802869,0.0002473,7]
[340306273,1729017043020,-595.37762,0.0002473,7]
[340306274,1729017043030,-366.802869,0.0002473,7]
[340306275,1729017043039,-366.802869,0.0002473,7]
[340306276,1729017043050,-366.802869,0.0002473,7]
[340306277,1729017043060,-433.834572,0.0002473,7]
[340306278,1729017043070,-366.802869,0.0002473,7]
[340306279,1729017043080,-433.834572,0.0002473,7]
[340306280,1729017043089,-366.802869,0.0002473,7]
[340306281,1729017043098,-433.834572,0.0002473,7]
[340306282,1729017043108,-433.834572,0.0002473,7]
[340306283,1729017043117,-433.834572,0.0002473,7]
[340306284,1729017043127,-433.834572,0.0002473,7]
[340306285,1729017043136,-277.861497,0.0002473,7]
[340306286,1729017043145,-277.861497,0.0002473,7]
[340306287,1729017043154,-4412.754101,0.0002473,7]
[340306288,1729017043163,-4412.754101,0.0002473,7]
[340306289,1729017043173,-4412.754101,0.0002473,7]
[340306290,1729017043182,-4412.754101,0.0002473,7]
[340306291,1729017043191,-4412.754101,0.0002473,7]
[340306292,1729017043200,-3135.050326,0.0002473,7]
[340306293,1729017043210,-4412.754101,0.0002473,7]
[340306294,1729017043219,-256.024179,0.0002473,7]
[340306295,1729017043228,-3135.050326,0.0002473,7]
[340306296,1729017043240,-256.024179,0.0002473,7]
[340306297,1729017043250,-151.0,0.0002473,7]
[340306298,1729017043259,-393.938928,0.0002473,7]
[340306299,1729017043268,-393.938928,0.0002473,7]
[340306300,1729017043278,-151.0,0.0002473,7]
[340306301,1729017043287,-151.0,0.0002473,7]
[340306302,1729017043297,-151.0,0.0002473,7]
[340306304,1729017043311,-151.0,0.0002473,7]
[340306306,1729017043321,-6379.28008428,0.0002473,3]
[340306308,1729017043330,-556.106067,0.0002473,7]
[340306309,1729017043339,-556.106067,0.0002473,7]
[340306310,1729017043349,-403.347381,0.0002473,7]
[340306311,1729017043358,-151.0,0.0002473,7]
[340306312,1729017043368,-403.347381,0.0002473,7]
[340306313,1729017043379,-4518.605231,0.0002473,7]
[340306314,1729017043390,-151.0,0.0002473,7]
[340306315,1729017043399,-4518.605231,0.0002473,7]
[340306316,1729017043408,-813.483686,0.0002473,7]
[340306317,1729017043417,-151.0,0.0002473,7]
[340306318,1729017043426,-813.483686,0.0002473,7]
[340306319,1729017043435,-151.0,0.0002473,7]
[340306320,1729017043444,-301.86349,0.0002473,7]
[340306321,1729017043453,-982.075382,0.0002473,7]
[340306322,1729017043462,-154.449256,0.0002473,7]
[340306323,1729017043471,-982.075382,0.0002473,7]
[340306324,1729017043483,-151.0,0.0002474,7]
[340306325,1729017043492,-161.05263,0.0002474,7]
[340306326,1729017043502,-161.05263,0.0002474,7]
[340306327,1729017043511,-161.05263,0.0002474,7]
[340306328,1729017043520,-161.05263,0.0002474,7]
[340306329,1729017043530,-151.0,0.0002474,7]
[340306330,1729017043540,-151.0,0.0002474,7]
[340306331,1729017043550,-151.0,0.0002474,7]
[340306332,1729017043559,-151.0,0.0002474,7]
[340306333,1729017043568,-151.0,0.0002474,7]
[340306334,1729017043577,-151.0,0.0002474,7]
[340306335,1729017043587,-200.701863,0.0002474,7]
[340306336,1729017043596,-151.0,0.0002474,7]
[340306337,1729017043605,-151.0,0.0002474,7]
[340306338,1729017043615,-163.902417,0.0002474,7]
[340306339,1729017043624,-163.902417,0.0002474,7]
[340306340,1729017043634,-151.0,0.0002474,7]
[340306341,1729017043643,-151.0,0.0002474,7]
[340306342,1729017043653,-151.0,0.0002474,7]
[340306343,1729017043662,-151.0,0.0002474,7]
[340306344,1729017043672,-1737.013855,0.0002474,7]
[340306345,1729017043681,-1737.013855,0.0002474,7]
[340306346,1729017043691,-1737.013855,0.0002474,7]
[340306347,1729017043700,-151.0,0.0002474,7]
[340306348,1729017043710,-1737.013855,0.0002474,7]
[340306349,1729017043719,-151.0,0.0002474,7]
[340306350,1729017043731,-153.025946,0.0002474,7]
[340306351,1729017043740,-387.244141,0.0002474,7]
[340306352,1729017043750,-387.244141,0.0002474,7]
[340306353,1729017043759,-1080.492599,0.0002474,7]
[340306354,1729017043768,-1080.492599,0.0002474,7]
[340306355,1729017043777,-387.244141,0.0002474,7]
[340306356,1729017043787,-387.244141,0.0002474,7]
[340306357,1729017043796,-1080.492599,0.0002474,7]
[340306358,1729017043805,-1080.492599,0.0002474,7]
[340306359,1729017043816,-151.0,0.0002474,7]
[340306360,1729017043825,-151.0,0.0002474,7]
[340306361,1729017043834,-722.692571,0.0002474,7]
[340306362,1729017043844,-722.692571,0.0002474,7]
[340306363,1729017043854,-327.411365,0.0002474,7]
[340306364,1729017043863,-327.411365,0.0002474,7]
[340306365,1729017043873,-1008.667292,0.0002474,7]
[340306366,1729017043882,-1008.667292,0.0002474,7]
[340306367,1729017043893,-722.692571,0.0002474,7]
[340306368,1729017043903,-722.692571,0.0002474,7]
[340306369,1729017043913,-327.411365,0.0002474,7]
[340306370,1729017043923,-327.411365,0.0002474,7]
[340306371,1729017043932,-151.0,0.0002474,7]
[340306372,1729017043943,-151.0,0.0002474,7]
[340306373,1729017043953,-1041.99885653,0.0002474,2]
[340306374,1729017043962,-978.538985,0.0002474,7]
[340306375,1729017043973,-978.538985,0.0002474,7]
[340306376,1729017043986,-978.538985,0.0002474,7]
[340306377,1729017043995,-978.538985,0.0002474,7]
[340306378,1729017044004,-3900.966555,0.0002474,7]
[340306379,1729017044014,-3900.966555,0.0002474,7]
[340306380,1729017044023,-3900.966555,0.0002474,7]
[340306381,1729017044033,-3900.966555,0.0002474,7]
[340306382,1729017044044,-361.786113,0.0002474,7]
[340306383,1729017044055,-361.786113,0.0002474,7]
[340306384,1729017044065,-361.786113,0.0002474,7]
[340306385,1729017044075,-361.786113,0.0002474,7]
[340306386,1729017044085,-263.057463,0.0002474,7]
[340306387,1729017044095,-263.057463,0.0002474,7]
[340306388,1729017044105,-151.0,0.0002474,7]
[340306389,1729017044116,-151.0,0.0002474,7]
[340306390,1729017044127,-151.0,0.0002474,7]
[340306391,1729017044137,-263.057463,0.0002474,7]
[340306392,1729017044147,-151.0,0.0002474,7]
[340306393,1729017044157,-263.057463,0.0002474,7]
[340306394,1729017044167,-2472.310134,0.0002474,7]
[340306395,1729017044177,-2472.310134,0.0002474,7]
[340306396,1729017044186,-2472.310134,0.0002474,7]
[340306397,1729017044195,-2472.310134,0.0002474,7]
[340306398,1729017044204,-595.37762,0.0002474,7]
[340306399,1729017044214,-366.802869,0.0002474,7]
[340306400,1729017044223,-366.802869,0.0002474,7]
[340306401,1729017044235,-366.802869,0.0002474,7]
[340306402,1729017044245,-433.834572,0.0002474,7]
[340306403,1729017044256,-366.802869,0.0002474,7]
[340306404,1729017044266,-433.834572,0.0002474,7]
[340306405,1729017044277,-433.834572,0.0002474,7]
[340306406,1729017044287,-433.834572,0.0002474,7]
[340306407,1729017044298,-277.861497,0.0002474,7]
[340306408,1729017044313,-277.861497,0.0002474,7]
[340306409,1729017044323,-4412.754101,0.0002474,7]
[340306410,1729017044333,-4412.754101,0.0002474,7]
[340306411,1729017044344,-3135.050326,0.0002474,7]
[340306412,1729017044357,-256.024179,0.0002474,7]
[340306413,1729017044366,-4412.754101,0.0002474,7]
[340306414,1729017044376,-4412.754101,0.0002474,7]
[340306415,1729017044385,-3135.050326,0.0002474,7]
[340306416,1729017044395,-256.024179,0.0002474,7]
[340306417,1729017044405,-393.938928,0.0002474,7]
[340306418,1729017044416,-393.938928,0.0002474,7]
[340306419,1729017044426,-154.023872,0.0002474,7]
[340306420,1729017044437,-151.0,0.0002474,7]
[340306421,1729017044447,-151.0,0.0002474,7]
[340306422,1729017044458,-275.93961,0.0002474,7]
[340306423,1729017044469,-556.106067,0.0002474,7]
[340306424,1729017044480,-556.106067,0.0002474,7]
[340306425,1729017044489,-403.347381,0.0002474,7]
[340306426,1729017044499,-218.743002,0.0002474,7]
[340306427,1729017044509,-403.347381,0.0002474,7]
[340306428,1729017044518,-4518.605231,0.0002474,7]
[340306429,1729017044528,-151.0,0.0002474,7]
[340306430,1729017044537,-4518.605231,0.0002474,7]
[340306431,1729017044547,-813.483686,0.0002474,7]
[340306432,1729017044557,-151.0,0.0002474,7]
[340306433,1729017044566,-813.483686,0.0002474,7]
[340306434,1729017044575,-151.0,0.0002474,7]
[340306435,1729017044584,-982.075382,0.0002474,7]
[340306436,1729017044594,-982.075382,0.0002474,7]
[340306437,1729017044605,-15948.2002107,0.0002474,3]
[340306438,1729017044616,-180622.6888842,0.0002475,2]
[340306439,1729017044626,-151.0,0.0002475,7]
[340306440,1729017044635,-151.0,0.0002475,7]
[340306441,1729017044646,-151.0,0.0002475,7]
[340306442,1729017044656,-264.474402,0.0002475,7]
[340306443,1729017044667,-151.0,0.0002475,7]
[340306444,1729017044677,-161.05263,0.0002475,7]
[340306445,1729017044686,-161.05263,0.0002475,7]
[340306446,1729017044696,-151.0,0.0002475,7]
[340306447,1729017044706,-151.0,0.0002475,7]
[340306448,1729017044716,-151.0,0.0002475,7]
[340306449,1729017044727,-151.0,0.0002475,7]
[340306450,1729017044738,-151.0,0.0002475,7]
[340306451,1729017044748,-151.0,0.0002475,7]
[340306452,1729017044758,-235.962846,0.0002475,7]
[340306453,1729017044769,-151.0,0.0002475,7]
[340306454,1729017044780,-151.0,0.0002475,7]
[340306455,1729017044789,-163.902417,0.0002475,7]